[Event "Titled Tuesday Blitz May 24 Early 2022"]
[White "Li, Zhuoling"]
[Black "Vo, Thi Kim Phung"]
[WhiteFideId "8605629"]
[BlackFideId "12401838"]
[WhiteElo "2351"]
[BlackElo "2261"]
[Result "1-0"]
[Round "07"]
[TimeControl "180+1"]
[Date "2022.05.25"]
[WhiteClock "0:00:15"]
[BlackClock "0:00:02"]

1. e4 {[%clk 0:02:59]}  e6 {[%clk 0:02:55]} 2. d4 {[%clk 0:02:59]}  d5 {[%clk 0:02:55]} 3. e5 {[%clk 0:02:59]}  c5 {[%clk 0:02:55]} 4. c3 {[%clk 0:03:00]}  Nc6 {[%clk 0:02:56]} 5. Nf3 {[%clk 0:03:00]}  Bd7 {[%clk 0:02:56]} 6. Be2 {[%clk 0:03:00]}  Nge7 {[%clk 0:02:55]} 7. O-O {[%clk 0:02:58]}  Qb6 {[%clk 0:02:56]} 8. b3 {[%clk 0:02:55]}  cxd4 {[%clk 0:02:53]} 9. cxd4 {[%clk 0:02:55]}  Nf5 {[%clk 0:02:54]} 10. Bb2 {[%clk 0:02:55]}  Rc8 {[%clk 0:02:48]} 11. g4 {[%clk 0:02:49]}  Nfe7 {[%clk 0:02:47]} 12. Nc3 {[%clk 0:02:46]}  Na5 {[%clk 0:02:42]} 13. Rc1 {[%clk 0:02:39]}  h5 {[%clk 0:02:39]} 14. h3 {[%clk 0:02:34]}  hxg4 {[%clk 0:02:39]} 15. hxg4 {[%clk 0:02:34]}  Ng6 {[%clk 0:02:32]} 16. Qd2 {[%clk 0:02:34]}  Bb4 {[%clk 0:02:24]} 17. Kg2 {[%clk 0:02:29]}  Nc6 {[%clk 0:02:02]} 18. Rh1 {[%clk 0:02:15]}  Rxh1 {[%clk 0:01:56]} 19. Rxh1 {[%clk 0:02:14]}  Qa5 {[%clk 0:01:48]} 20. a3 {[%clk 0:01:43]}  Bxc3 {[%clk 0:01:40]} 21. Bxc3 {[%clk 0:01:43]}  Qxa3 {[%clk 0:01:40]} 22. Bd3 {[%clk 0:01:24]}  Nce7 {[%clk 0:01:09]} 23. Bb4 {[%clk 0:01:18]}  Qxb3 {[%clk 0:01:09]} 24. Bxe7 {[%clk 0:01:17]}  Kxe7 {[%clk 0:00:46]} 25. Qg5+ {[%clk 0:01:07]}  Kf8 {[%clk 0:00:13]} 26. Bxg6 {[%clk 0:01:06]}  fxg6 {[%clk 0:00:11]} 27. Qxg6 {[%clk 0:01:05]}  Be8 {[%clk 0:00:09]} 28. Rh8+ {[%clk 0:01:03]}  Ke7 {[%clk 0:00:09]} 29. Qxg7+ {[%clk 0:01:03]}  Kd8 {[%clk 0:00:10]} 30. Qf6+ {[%clk 0:00:56]}  Kc7 {[%clk 0:00:10]} 31. Qe7+ {[%clk 0:00:55]}  Kb6 {[%clk 0:00:10]} 32. Rxe8 {[%clk 0:00:38]}  Rc6 {[%clk 0:00:10]} 33. g5 {[%clk 0:00:31]}  Qd3 {[%clk 0:00:10]} 34. Qf6 {[%clk 0:00:28]}  Qe4 {[%clk 0:00:08]} 35. Kg3 {[%clk 0:00:20]}  a5 {[%clk 0:00:06]} 36. g6 {[%clk 0:00:19]}  a4 {[%clk 0:00:05]} 37. g7 {[%clk 0:00:17]}  a3 {[%clk 0:00:05]} 38. g8=Q {[%clk 0:00:17]}  a2 {[%clk 0:00:06]} 39. Rxe6 {[%clk 0:00:15]}  a1=Q {[%clk 0:00:02]} 40. Rxc6+ {[%clk 0:00:15]} 1-0


[Site "https://www.chess.com"]

[Event "Titled Tuesday Blitz May 24 Early 2022"]
[White "Liyanage, Ranindu Dilshan"]
[Black "Lazavik, Denis"]
[WhiteFideId "9915834"]
[BlackFideId "13515110"]
[WhiteElo "1858"]
[BlackElo "2437"]
[Result "1/2-1/2"]
[Round "07"]
[TimeControl "180+1"]
[Date "2022.05.24"]
[WhiteClock "0:00:08"]
[BlackClock "0:00:05"]

1. e4 {[%clk 0:03:00]}  c5 {[%clk 0:02:59]} 2. Nf3 {[%clk 0:03:01]}  e6 {[%clk 0:03:00]} 3. d4 {[%clk 0:03:02]}  cxd4 {[%clk 0:03:01]} 4. Nxd4 {[%clk 0:03:02]}  Nc6 {[%clk 0:03:01]} 5. Nc3 {[%clk 0:03:02]}  Qc7 {[%clk 0:03:00]} 6. Be3 {[%clk 0:03:01]}  a6 {[%clk 0:03:00]} 7. g4 {[%clk 0:03:00]}  b5 {[%clk 0:02:56]} 8. Nxc6 {[%clk 0:03:00]}  Qxc6 {[%clk 0:02:56]} 9. Qd2 {[%clk 0:03:00]}  b4 {[%clk 0:02:56]} 10. Ne2 {[%clk 0:03:01]}  Qxe4 {[%clk 0:02:57]} 11. Rg1 {[%clk 0:03:01]}  Qc4 {[%clk 0:02:55]} 12. Nf4 {[%clk 0:02:58]}  Qc7 {[%clk 0:02:54]} 13. O-O-O {[%clk 0:02:56]}  Nf6 {[%clk 0:02:46]} 14. Bg2 {[%clk 0:02:46]}  Bb7 {[%clk 0:02:44]} 15. g5 {[%clk 0:02:36]}  Ne4 {[%clk 0:02:41]} 16. Qd4 {[%clk 0:02:32]}  Nd6 {[%clk 0:02:24]} 17. Qxb4 {[%clk 0:02:12]}  Bxg2 {[%clk 0:02:21]} 18. Rxg2 {[%clk 0:02:06]}  Be7 {[%clk 0:02:03]} 19. Nh5 {[%clk 0:01:44]}  Nf5 {[%clk 0:01:58]} 20. Qb6 {[%clk 0:01:20]}  Qxb6 {[%clk 0:01:51]} 21. Bxb6 {[%clk 0:01:21]}  Rc8 {[%clk 0:01:49]} 22. Ba5 {[%clk 0:01:15]}  d5 {[%clk 0:01:45]} 23. Bc3 {[%clk 0:01:15]}  O-O {[%clk 0:01:42]} 24. Rg4 {[%clk 0:01:09]}  Rfd8 {[%clk 0:01:36]} 25. Be5 {[%clk 0:01:04]}  Bd6 {[%clk 0:01:24]} 26. Bxd6 {[%clk 0:00:54]}  Rxd6 {[%clk 0:01:24]} 27. Ng3 {[%clk 0:00:52]}  Rdc6 {[%clk 0:01:24]} 28. c3 {[%clk 0:00:51]}  Nd6 {[%clk 0:01:24]} 29. Ne2 {[%clk 0:00:49]}  Ne4 {[%clk 0:01:20]} 30. Rg2 {[%clk 0:00:41]}  a5 {[%clk 0:01:19]} 31. f3 {[%clk 0:00:41]}  Nd6 {[%clk 0:01:19]} 32. Nd4 {[%clk 0:00:42]}  Rc4 {[%clk 0:01:17]} 33. f4 {[%clk 0:00:36]}  a4 {[%clk 0:01:15]} 34. a3 {[%clk 0:00:37]}  g6 {[%clk 0:01:14]} 35. h4 {[%clk 0:00:36]}  Nf5 {[%clk 0:01:06]} 36. Nxf5 {[%clk 0:00:32]}  gxf5 {[%clk 0:01:07]} 37. Rf2 {[%clk 0:00:30]}  d4 {[%clk 0:01:07]} 38. h5 {[%clk 0:00:21]}  dxc3 {[%clk 0:01:07]} 39. Rd7 {[%clk 0:00:14]}  R4c7 {[%clk 0:00:48]} 40. Rxc7 {[%clk 0:00:10]}  Rxc7 {[%clk 0:00:49]} 41. Rc2 {[%clk 0:00:11]}  cxb2+ {[%clk 0:00:48]} 42. Kxb2 {[%clk 0:00:12]}  Rxc2+ {[%clk 0:00:26]} 43. Kxc2 {[%clk 0:00:13]}  h6 {[%clk 0:00:27]} 44. Kd3 {[%clk 0:00:09]}  e5 {[%clk 0:00:11]} 45. Ke3 {[%clk 0:00:04]}  Kg7 {[%clk 0:00:09]} 46. Kf3 {[%clk 0:00:01]}  Kg8 {[%clk 0:00:05]} 47. Ke3 {[%clk 0:00:02]}  Kf8 {[%clk 0:00:05]} 48. Kf3 {[%clk 0:00:02]}  Kg7 {[%clk 0:00:06]} 49. Ke3 {[%clk 0:00:03]}  e4 {[%clk 0:00:04]} 50. Kd4 {[%clk 0:00:03]}  Kh7 {[%clk 0:00:04]} 51. Ke3 {[%clk 0:00:03]}  Kg8 {[%clk 0:00:05]} 52. Kd4 {[%clk 0:00:04]}  Kg7 {[%clk 0:00:05]} 53. Ke3 {[%clk 0:00:04]}  Kf8 {[%clk 0:00:03]} 54. Kd4 {[%clk 0:00:04]}  Ke7 {[%clk 0:00:03]} 55. Ke3 {[%clk 0:00:04]}  Kf8 {[%clk 0:00:03]} 56. Kd4 {[%clk 0:00:04]}  Kg7 {[%clk 0:00:03]} 57. Ke3 {[%clk 0:00:05]}  hxg5 {[%clk 0:00:02]} 58. fxg5 {[%clk 0:00:06]}  f6 {[%clk 0:00:03]} 59. g6 {[%clk 0:00:06]}  Kh6 {[%clk 0:00:03]} 60. Kf4 {[%clk 0:00:06]}  Kg7 {[%clk 0:00:04]} 61. Ke3 {[%clk 0:00:07]}  Kh6 {[%clk 0:00:04]} 62. Kf4 {[%clk 0:00:07]}  Kg7 {[%clk 0:00:05]} 63. Ke3 {[%clk 0:00:08]} 1/2-1/2


[Site "https://www.chess.com"]

[Event "Titled Tuesday Blitz May 24 Early 2022"]
[White "Lutz, Igor Oscar"]
[Black "Shton, Roman"]
[WhiteFideId "2110806"]
[BlackFideId "14137461"]
[WhiteElo "1724"]
[BlackElo "2013"]
[Result "0-1"]
[Round "07"]
[TimeControl "180+1"]
[Date "2022.05.25"]
[WhiteClock "0:02:27"]
[BlackClock "0:02:31"]

1. d4 {[%clk 0:03:00]}  d5 {[%clk 0:02:59]} 2. c4 {[%clk 0:03:00]}  e6 {[%clk 0:02:58]} 3. Nf3 {[%clk 0:03:00]}  Nf6 {[%clk 0:02:58]} 4. g3 {[%clk 0:03:01]}  dxc4 {[%clk 0:02:57]} 5. Qa4+ {[%clk 0:02:58]}  Nbd7 {[%clk 0:02:49]} 6. Qxc4 {[%clk 0:02:58]}  a6 {[%clk 0:02:49]} 7. Bg2 {[%clk 0:02:59]}  b5 {[%clk 0:02:49]} 8. Qc6 {[%clk 0:02:56]}  Rb8 {[%clk 0:02:44]} 9. O-O {[%clk 0:02:53]}  Bb7 {[%clk 0:02:43]} 10. Qc2 {[%clk 0:02:53]}  c5 {[%clk 0:02:43]} 11. Rd1 {[%clk 0:02:49]}  Qb6 {[%clk 0:02:39]} 12. Bf4 {[%clk 0:02:49]}  Rc8 {[%clk 0:02:38]} 13. dxc5 {[%clk 0:02:45]}  Bxc5 {[%clk 0:02:39]} 14. Nc3 {[%clk 0:02:41]}  Bxf2+ {[%clk 0:02:38]} 15. Kh1 {[%clk 0:02:40]}  b4 {[%clk 0:02:34]} 16. Na4 {[%clk 0:02:27]}  Rxc2 {[%clk 0:02:32]} 17. Nxb6 {[%clk 0:02:27]}  Bxb6 {[%clk 0:02:31]} 0-1


[Site "https://www.chess.com"]

[Event "Titled Tuesday Blitz May 24 Early 2022"]
[White "Maghsoodloo, Parham"]
[Black "Sokolovsky, Yahli"]
[WhiteFideId "12539929"]
[BlackFideId "2820242"]
[WhiteElo "2630"]
[BlackElo "1770"]
[Result "1-0"]
[Round "07"]
[TimeControl "180+1"]
[Date "2022.05.24"]
[WhiteClock "0:01:19"]
[BlackClock "0:00:03"]

1. e4 {[%clk 0:03:00]}  g6 {[%clk 0:02:59]} 2. d4 {[%clk 0:03:00]}  Bg7 {[%clk 0:03:00]} 3. Nc3 {[%clk 0:03:01]}  d6 {[%clk 0:03:01]} 4. h4 {[%clk 0:03:01]}  h5 {[%clk 0:02:58]} 5. Nf3 {[%clk 0:03:01]}  Nc6 {[%clk 0:02:50]} 6. Be3 {[%clk 0:03:00]}  Nf6 {[%clk 0:02:46]} 7. d5 {[%clk 0:02:57]}  Nb8 {[%clk 0:02:44]} 8. Ng5 {[%clk 0:02:53]}  c5 {[%clk 0:02:30]} 9. dxc6 {[%clk 0:02:43]}  Nxc6 {[%clk 0:02:30]} 10. Bc4 {[%clk 0:02:43]}  O-O {[%clk 0:02:12]} 11. f3 {[%clk 0:02:42]}  Ne5 {[%clk 0:02:11]} 12. Bb3 {[%clk 0:02:41]}  Bd7 {[%clk 0:02:01]} 13. Qe2 {[%clk 0:02:40]}  a6 {[%clk 0:01:47]} 14. O-O-O {[%clk 0:02:40]}  b5 {[%clk 0:01:46]} 15. g4 {[%clk 0:02:40]}  hxg4 {[%clk 0:01:26]} 16. f4 {[%clk 0:02:40]}  Nc4 {[%clk 0:01:23]} 17. h5 {[%clk 0:02:38]}  Nxh5 {[%clk 0:01:20]} 18. f5 {[%clk 0:02:36]}  Qa5 {[%clk 0:00:26]} 19. Bd4 {[%clk 0:01:22]}  Bxd4 {[%clk 0:00:26]} 20. Rxd4 {[%clk 0:01:22]}  Rfc8 {[%clk 0:00:09]} 21. Nd5 {[%clk 0:01:22]}  Qd8 {[%clk 0:00:04]} 22. Qxg4 {[%clk 0:01:21]}  Na5 {[%clk 0:00:01]} 23. Rxh5 {[%clk 0:01:20]}  Nxb3+ {[%clk 0:00:01]} 24. axb3 {[%clk 0:01:19]}  Rxc2+ {[%clk 0:00:01]} 25. Kxc2 {[%clk 0:01:19]}  Rc8+ {[%clk 0:00:02]} 26. Kb1 {[%clk 0:01:20]}  Qa5 {[%clk 0:00:03]} 27. Rh8+ {[%clk 0:01:19]} 1-0


[Site "https://www.chess.com"]

[Event "Titled Tuesday Blitz May 24 Early 2022"]
[White "Maksimenko, Viktor"]
[Black "Samadov, Read"]
[WhiteFideId "13710478"]
[BlackFideId "13417444"]
[WhiteElo "2579"]
[BlackElo "2770"]
[Result "0-1"]
[Round "07"]
[TimeControl "180+1"]
[Date "2022.05.25"]
[WhiteClock "0:00:05"]
[BlackClock "0:00:28"]

1. d4 {[%clk 0:03:00]}  Nf6 {[%clk 0:02:59]} 2. c4 {[%clk 0:03:00]}  e6 {[%clk 0:03:00]} 3. Nf3 {[%clk 0:03:00]}  d5 {[%clk 0:03:00]} 4. g3 {[%clk 0:03:00]}  Bb4+ {[%clk 0:03:00]} 5. Bd2 {[%clk 0:03:00]}  Be7 {[%clk 0:03:01]} 6. Bg2 {[%clk 0:02:58]}  O-O {[%clk 0:03:01]} 7. Qc2 {[%clk 0:02:57]}  c6 {[%clk 0:03:01]} 8. h4 {[%clk 0:02:57]}  b6 {[%clk 0:02:59]} 9. Nc3 {[%clk 0:02:48]}  Ba6 {[%clk 0:02:58]} 10. Ne5 {[%clk 0:01:36]}  Bxc4 {[%clk 0:02:55]} 11. Nxc4 {[%clk 0:00:57]}  dxc4 {[%clk 0:02:55]} 12. Rd1 {[%clk 0:00:57]}  Nd5 {[%clk 0:02:41]} 13. Ne4 {[%clk 0:00:53]}  b5 {[%clk 0:02:40]} 14. Ng5 {[%clk 0:00:53]}  g6 {[%clk 0:02:19]} 15. a3 {[%clk 0:00:53]}  Nd7 {[%clk 0:02:14]} 16. e4 {[%clk 0:00:52]}  N5f6 {[%clk 0:02:07]} 17. Bc3 {[%clk 0:00:46]}  Ng4 {[%clk 0:01:50]} 18. Qe2 {[%clk 0:00:42]}  h5 {[%clk 0:01:48]} 19. Nh3 {[%clk 0:00:34]}  Qb6 {[%clk 0:01:35]} 20. Nf4 {[%clk 0:00:33]}  e5 {[%clk 0:01:33]} 21. dxe5 {[%clk 0:00:31]}  Ndxe5 {[%clk 0:01:34]} 22. f3 {[%clk 0:00:22]}  Rad8 {[%clk 0:01:25]} 23. Rxd8 {[%clk 0:00:18]}  Rxd8 {[%clk 0:01:24]} 24. fxg4 {[%clk 0:00:19]}  Nxg4 {[%clk 0:01:24]} 25. Bf3 {[%clk 0:00:16]}  Ne3 {[%clk 0:00:59]} 26. Ng2 {[%clk 0:00:16]}  Rd3 {[%clk 0:00:54]} 27. Nf4 {[%clk 0:00:12]}  Nc2+ {[%clk 0:00:43]} 28. Qxc2 {[%clk 0:00:11]}  Rxf3 {[%clk 0:00:43]} 29. Qg2 {[%clk 0:00:09]}  Qe3+ {[%clk 0:00:40]} 30. Ne2 {[%clk 0:00:07]}  Bc5 {[%clk 0:00:38]} 31. Rf1 {[%clk 0:00:07]}  Rxf1+ {[%clk 0:00:33]} 32. Kxf1 {[%clk 0:00:08]}  a5 {[%clk 0:00:31]} 33. Qh3 {[%clk 0:00:07]}  Qf3+ {[%clk 0:00:26]} 34. Ke1 {[%clk 0:00:08]}  Bf2+ {[%clk 0:00:26]} 35. Kd1 {[%clk 0:00:05]}  Qd3+ {[%clk 0:00:26]} 36. Bd2 {[%clk 0:00:01]}  Be3 {[%clk 0:00:27]} 37. Ke1 {[%clk 0:00:02]}  Qxd2+ {[%clk 0:00:26]} 38. Kf1 {[%clk 0:00:03]}  Qd1+ {[%clk 0:00:27]} 39. Kg2 {[%clk 0:00:04]}  Qxe2+ {[%clk 0:00:28]} 40. Kh1 {[%clk 0:00:04]}  Qe1+ {[%clk 0:00:28]} 41. Qf1 {[%clk 0:00:05]}  Qxf1+ {[%clk 0:00:28]} 0-1


[Site "https://www.chess.com"]

[Event "Titled Tuesday Blitz May 24 Early 2022"]
[White "Matinian, Nikita"]
[Black "Riehle, Marco"]
[WhiteFideId "24129100"]
[BlackFideId "12904392"]
[WhiteElo "2422"]
[BlackElo "2462"]
[Result "0-1"]
[Round "07"]
[TimeControl "180+1"]
[Date "2022.05.24"]
[WhiteClock "0:00:02"]
[BlackClock "0:00:53"]

1. e4 {[%clk 0:03:00]}  e5 {[%clk 0:02:57]} 2. Nf3 {[%clk 0:03:00]}  Nf6 {[%clk 0:02:57]} 3. Nxe5 {[%clk 0:02:59]}  Nxe4 {[%clk 0:02:57]} 4. Qe2 {[%clk 0:02:59]}  Qe7 {[%clk 0:02:58]} 5. Qxe4 {[%clk 0:02:58]}  d6 {[%clk 0:02:58]} 6. d4 {[%clk 0:02:58]}  dxe5 {[%clk 0:02:54]} 7. dxe5 {[%clk 0:02:57]}  Nc6 {[%clk 0:02:54]} 8. Nc3 {[%clk 0:02:55]}  Qxe5 {[%clk 0:02:54]} 9. Bb5 {[%clk 0:02:45]}  Qxe4+ {[%clk 0:02:51]} 10. Nxe4 {[%clk 0:02:46]}  Bd7 {[%clk 0:02:51]} 11. Bg5 {[%clk 0:02:44]}  f6 {[%clk 0:02:47]} 12. Bh4 {[%clk 0:02:33]}  O-O-O {[%clk 0:02:47]} 13. O-O-O {[%clk 0:02:34]}  Be7 {[%clk 0:02:44]} 14. Rhe1 {[%clk 0:02:32]}  a6 {[%clk 0:02:42]} 15. Ba4 {[%clk 0:02:29]}  Rhe8 {[%clk 0:02:39]} 16. f3 {[%clk 0:02:26]}  g5 {[%clk 0:02:33]} 17. Bf2 {[%clk 0:02:23]}  f5 {[%clk 0:02:29]} 18. Nc5 {[%clk 0:02:23]}  Bd6 {[%clk 0:02:19]} 19. Nxd7 {[%clk 0:02:20]}  Kxd7 {[%clk 0:02:20]} 20. g3 {[%clk 0:02:15]}  h5 {[%clk 0:02:15]} 21. Bb3 {[%clk 0:02:15]}  g4 {[%clk 0:02:14]} 22. f4 {[%clk 0:02:07]}  Re7 {[%clk 0:02:07]} 23. c3 {[%clk 0:02:06]}  h4 {[%clk 0:01:55]} 24. Bc2 {[%clk 0:02:05]}  Rf8 {[%clk 0:01:55]} 25. gxh4 {[%clk 0:02:01]}  Rxe1 {[%clk 0:01:51]} 26. Bxe1 {[%clk 0:02:02]}  Ne7 {[%clk 0:01:51]} 27. Bg3 {[%clk 0:02:02]}  Kc6 {[%clk 0:01:48]} 28. Re1 {[%clk 0:01:41]}  Nd5 {[%clk 0:01:38]} 29. Re6 {[%clk 0:01:35]}  Kd7 {[%clk 0:01:38]} 30. Rg6 {[%clk 0:01:20]}  Bxf4+ {[%clk 0:01:37]} 31. Kb1 {[%clk 0:01:21]}  Bd6 {[%clk 0:01:26]} 32. Bxd6 {[%clk 0:01:07]}  cxd6 {[%clk 0:01:27]} 33. h5 {[%clk 0:01:07]}  f4 {[%clk 0:01:24]} 34. Rxg4 {[%clk 0:00:57]}  f3 {[%clk 0:01:24]} 35. Rg7+ {[%clk 0:00:58]}  Kc6 {[%clk 0:01:15]} 36. Bd3 {[%clk 0:00:24]}  f2 {[%clk 0:01:15]} 37. a4 {[%clk 0:00:06]}  f1=Q+ {[%clk 0:01:00]} 38. Bxf1 {[%clk 0:00:06]}  Rxf1+ {[%clk 0:01:01]} 39. Ka2 {[%clk 0:00:07]}  Rf2 {[%clk 0:01:01]} 40. h6 {[%clk 0:00:07]}  Rxh2 {[%clk 0:01:01]} 41. h7 {[%clk 0:00:06]}  Nxc3+ {[%clk 0:01:00]} 42. Ka3 {[%clk 0:00:05]}  Nd5 {[%clk 0:00:57]} 43. b4 {[%clk 0:00:05]}  Nf6 {[%clk 0:00:53]} 44. b5+ {[%clk 0:00:04]}  axb5 {[%clk 0:00:53]} 45. axb5+ {[%clk 0:00:05]}  Kb6 {[%clk 0:00:54]} 46. Ka4 {[%clk 0:00:05]}  Rh4+ {[%clk 0:00:53]} 47. Kb3 {[%clk 0:00:04]}  Rxh7 {[%clk 0:00:54]} 48. Rg6 {[%clk 0:00:04]}  Rh3+ {[%clk 0:00:52]} 49. Kb4 {[%clk 0:00:02]}  Rh4+ {[%clk 0:00:52]} 50. Kb3 {[%clk 0:00:02]}  Rf4 {[%clk 0:00:53]} 51. Ka3 {[%clk 0:00:02]}  Kxb5 {[%clk 0:00:53]} 0-1


[Site "https://www.chess.com"]

[Event "Titled Tuesday Blitz May 24 Early 2022"]
[White "Mestnikov, Aisen"]
[Black "De Souza, Cristiano Gomes"]
[WhiteFideId "34130117"]
[BlackFideId "2151758"]
[WhiteElo "2027"]
[BlackElo "2068"]
[Result "1-0"]
[Round "07"]
[TimeControl "180+1"]
[Date "2022.05.25"]
[WhiteClock "0:00:06"]
[BlackClock "0:00:59"]

1. d4 {[%clk 0:03:00]}  Nf6 {[%clk 0:02:59]} 2. c4 {[%clk 0:03:01]}  g6 {[%clk 0:02:59]} 3. Nf3 {[%clk 0:03:01]}  Bg7 {[%clk 0:02:58]} 4. Nc3 {[%clk 0:03:02]}  d6 {[%clk 0:02:58]} 5. e4 {[%clk 0:03:02]}  O-O {[%clk 0:02:58]} 6. Be2 {[%clk 0:03:03]}  e5 {[%clk 0:02:58]} 7. dxe5 {[%clk 0:03:03]}  dxe5 {[%clk 0:02:57]} 8. Qxd8 {[%clk 0:03:04]}  Rxd8 {[%clk 0:02:57]} 9. Bg5 {[%clk 0:03:05]}  Re8 {[%clk 0:02:57]} 10. O-O-O {[%clk 0:02:54]}  c6 {[%clk 0:02:44]} 11. Nxe5 {[%clk 0:02:54]}  Nxe4 {[%clk 0:02:33]} 12. Nxe4 {[%clk 0:02:50]}  Bxe5 {[%clk 0:02:32]} 13. Nf6+ {[%clk 0:02:50]}  Bxf6 {[%clk 0:02:29]} 14. Bxf6 {[%clk 0:02:51]}  Nd7 {[%clk 0:02:30]} 15. Bc3 {[%clk 0:01:54]}  Nc5 {[%clk 0:02:29]} 16. Rhe1 {[%clk 0:01:55]}  h5 {[%clk 0:02:12]} 17. b4 {[%clk 0:01:41]}  Ne4 {[%clk 0:02:10]} 18. Bf3 {[%clk 0:01:40]}  Bf5 {[%clk 0:02:08]} 19. Bd4 {[%clk 0:01:37]}  b6 {[%clk 0:02:03]} 20. Be3 {[%clk 0:01:16]}  Rad8 {[%clk 0:01:57]} 21. Kb2 {[%clk 0:01:16]}  Rxd1 {[%clk 0:01:51]} 22. Rxd1 {[%clk 0:01:17]}  Nf6 {[%clk 0:01:48]} 23. Bxc6 {[%clk 0:01:12]}  Rc8 {[%clk 0:01:47]} 24. Bb5 {[%clk 0:01:04]}  Be6 {[%clk 0:01:44]} 25. c5 {[%clk 0:00:58]}  bxc5 {[%clk 0:01:44]} 26. Bxc5 {[%clk 0:00:58]}  a5 {[%clk 0:01:42]} 27. a3 {[%clk 0:00:51]}  axb4 {[%clk 0:01:42]} 28. axb4 {[%clk 0:00:52]}  Nd5 {[%clk 0:01:41]} 29. Be2 {[%clk 0:00:19]}  Rb8 {[%clk 0:01:37]} 30. Rd4 {[%clk 0:00:19]}  Kg7 {[%clk 0:01:28]} 31. Bf3 {[%clk 0:00:15]}  Nb6 {[%clk 0:01:23]} 32. Bxb6 {[%clk 0:00:12]}  Rxb6 {[%clk 0:01:22]} 33. Kc3 {[%clk 0:00:12]}  Kf6 {[%clk 0:01:22]} 34. Bd5 {[%clk 0:00:10]}  Bf5 {[%clk 0:01:18]} 35. Rc4 {[%clk 0:00:09]}  Kg7 {[%clk 0:01:10]} 36. Rc7 {[%clk 0:00:09]}  Rf6 {[%clk 0:01:09]} 37. b5 {[%clk 0:00:08]}  Be6 {[%clk 0:01:03]} 38. Bxe6 {[%clk 0:00:07]}  Rxe6 {[%clk 0:01:04]} 39. Kc4 {[%clk 0:00:06]}  Re1 {[%clk 0:01:03]} 40. b6 {[%clk 0:00:05]}  Rb1 {[%clk 0:01:02]} 41. b7 {[%clk 0:00:05]}  Kf6 {[%clk 0:01:03]} 42. Kc5 {[%clk 0:00:05]}  Ke6 {[%clk 0:01:02]} 43. Rc6+ {[%clk 0:00:05]}  Kd7 {[%clk 0:01:02]} 44. Rb6 {[%clk 0:00:06]}  Rc1+ {[%clk 0:01:00]} 45. Kd4 {[%clk 0:00:06]}  Rd1+ {[%clk 0:01:00]} 46. Ke3 {[%clk 0:00:06]}  Ke7 {[%clk 0:00:59]} 47. b8=Q {[%clk 0:00:05]}  Rd7 {[%clk 0:00:59]} 48. Qe5+ {[%clk 0:00:05]}  Kf8 {[%clk 0:00:59]} 49. Rb8+ {[%clk 0:00:06]} 1-0


[Site "https://www.chess.com"]

[Event "Titled Tuesday Blitz May 24 Early 2022"]
[White "Namitbir Singh Walia"]
[Black "Ronka, Erik"]
[WhiteFideId "35071068"]
[BlackFideId "505080"]
[WhiteElo "1565"]
[BlackElo "2264"]
[Result "0-1"]
[Round "07"]
[TimeControl "180+1"]
[Date "2022.05.25"]
[WhiteClock "0:00:06"]
[BlackClock "0:00:35"]

1. d4 {[%clk 0:03:00]}  d5 {[%clk 0:03:00]} 2. c4 {[%clk 0:03:01]}  e6 {[%clk 0:03:00]} 3. Nf3 {[%clk 0:03:01]}  a6 {[%clk 0:03:01]} 4. g3 {[%clk 0:02:58]}  dxc4 {[%clk 0:03:01]} 5. Bg2 {[%clk 0:02:59]}  b5 {[%clk 0:03:02]} 6. Ne5 {[%clk 0:02:58]}  c6 {[%clk 0:02:59]} 7. Nxc6 {[%clk 0:02:52]}  Qb6 {[%clk 0:02:59]} 8. Nxb8 {[%clk 0:02:43]}  Rxb8 {[%clk 0:03:00]} 9. O-O {[%clk 0:02:44]}  Bb7 {[%clk 0:02:59]} 10. e4 {[%clk 0:02:44]}  Nf6 {[%clk 0:02:56]} 11. Re1 {[%clk 0:02:44]}  Rd8 {[%clk 0:02:43]} 12. d5 {[%clk 0:01:57]}  Bc5 {[%clk 0:02:41]} 13. Qe2 {[%clk 0:01:56]}  O-O {[%clk 0:02:31]} 14. Bg5 {[%clk 0:01:39]}  e5 {[%clk 0:02:02]} 15. Nd2 {[%clk 0:01:31]}  h6 {[%clk 0:02:02]} 16. Be3 {[%clk 0:01:29]}  Nd7 {[%clk 0:01:57]} 17. a4 {[%clk 0:01:27]}  Bd4 {[%clk 0:01:50]} 18. Ra2 {[%clk 0:01:14]}  Nc5 {[%clk 0:01:45]} 19. axb5 {[%clk 0:01:11]}  axb5 {[%clk 0:01:45]} 20. Nf3 {[%clk 0:00:55]}  Rfe8 {[%clk 0:01:32]} 21. Nxd4 {[%clk 0:00:52]}  exd4 {[%clk 0:01:33]} 22. Bxd4 {[%clk 0:00:51]}  Bxd5 {[%clk 0:01:28]} 23. Qe3 {[%clk 0:00:50]}  Rc8 {[%clk 0:01:20]} 24. Rea1 {[%clk 0:00:43]}  Bb7 {[%clk 0:01:15]} 25. Ra7 {[%clk 0:00:43]}  Bd5 {[%clk 0:00:53]} 26. R7a6 {[%clk 0:00:04]}  Qxa6 {[%clk 0:00:41]} 27. Rxa6 {[%clk 0:00:05]}  Nxa6 {[%clk 0:00:42]} 28. Qa3 {[%clk 0:00:05]}  Bb7 {[%clk 0:00:43]} 29. Qa5 {[%clk 0:00:06]}  Rcd8 {[%clk 0:00:41]} 30. Qxb5 {[%clk 0:00:05]}  Re7 {[%clk 0:00:38]} 31. Bb6 {[%clk 0:00:03]}  Rd1+ {[%clk 0:00:37]} 32. Bf1 {[%clk 0:00:04]}  Rxe4 {[%clk 0:00:35]} 33. f3 {[%clk 0:00:04]}  Ree1 {[%clk 0:00:35]} 34. Qxc4 {[%clk 0:00:04]}  Rxf1+ {[%clk 0:00:35]} 35. Qxf1 {[%clk 0:00:05]}  Rxf1+ {[%clk 0:00:36]} 36. Kxf1 {[%clk 0:00:06]}  f6 {[%clk 0:00:35]} 0-1


[Site "https://www.chess.com"]